[Event "Magistral Ajedrez 2019"]
[Site "Zaragoza"]
[Date "2019.07.15"]
[Round "2"]
[White "Dardha, Daniel"]
[Black "Llorente Zaro, Alfonso"]
[Result "0-1"]
[ECO "A45"]
[WhiteElo "2420"]
[BlackElo "2445"]
[Annotator "ChessBase"]
[PlyCount "68"]
[EventDate "2019.07.15"]
[EventType "swiss"]
[EventCountry "ESP"]
[SourceTitle "playchess.com"]
[Source "ChessBase"]
[SourceQuality "1"]
[TimeControl "40/5400+30:1800+30"]

1. d4 {[%emt 0:06:50]} Nf6 {[%emt 0:00:04]} 2. Bg5 {[%emt 0:01:01]} d5 {[%emt 0:04:24]} 3. Nd2 {[%emt 0:05:16]} c5 {[%emt 0:01:57]} 4. e3 {[%emt 0:01:05]} cxd4 {[%emt 0:05:09]} 5. exd4 {[%emt 0:02:05]} Qb6 {[%emt 0:00:08]} 6. Ngf3 {[%emt 0:04:14]} Nc6 {[%emt 0:00:16]} 7. c4 {[%emt 0:11:06]} Nxd4 {[%emt 0:03:08]} 8. cxd5 {[%emt 0:08:52]} Nxf3+ {[%emt 0:05:02]} 9. Nxf3 {[%emt 0:01:07]} Qa5+ {[%emt 0:08:44]} 10. Bd2 {[%emt 0:14:08]} Qxd5 {[%emt 0:00:23]} 11. Bc3 {[%emt 0:04:22]} e6 {[%emt 0:12:34]} 12. Bd3 {[%emt 0:05:06]} Be7 {[%emt 0:02:12]} 13. O-O {[%emt 0:00:10]} Bd7 {[%emt 0:06:07]} 14. Ne5 {[%emt 0:09:20]} Bb5 {[%emt 0:03:25]} 15. Bxb5+ {[%emt 0:00:42]} Qxb5 {[%emt 0:00:02]} 16. Ng4 {[%emt 0:00:36]} Rd8 {[%emt 0:16:26]} 17. Qf3 {[%emt 0:01:10]} Qd5 {[%emt 0:07:40]} 18. Qf4 {[%emt 0:00:57]} Nh5 {[%emt 0:01:58]} 19. Qa4+ {[%emt 0:00:23]} b5 {[%emt 0:00:39]} 20. Qxa7 {[%emt 0:01:36]} Bc5 {[%emt 0:00:30]} 21. Qa5 {[%emt 0:04:10]} O-O {[%emt 0:02:45]} 22. Ne3 {[%emt 0:00:05]} Qg5 {[%emt 0:01:22]} 23. Rae1 {[%emt 0:02:24]} Nf4 {[%emt 0:00:27]} 24. Qxb5 {[%emt 0:01:05]} Rd5 {[%emt 0:11:08]} 25. Qc4 {[%emt 0:08:28]} Bxe3 {[%emt 0:00:15]} 26. g3 {[%emt 0:00:10]} Nh3+ {[%emt 0:00:22]} 27. Kg2 {[%emt 0:00:08]} Nxf2 {[%emt 0:00:14]} 28. Rxe3 {[%emt 0:00:58]} Qxe3 {[%emt 0:00:07]} 29. Rxf2 {[%emt 0:00:08]} Rfd8 {[%emt 0:00:54]} 30. a4 {[%emt 0:02:12]} Qc5 {[%emt 0:02:00]} 31. Rf4 {[%emt 0:02:14]} Qd6 {[%emt 0:02:57]} 32. b4 Qd7 {[%emt 0:00:19]} 33. Rg4 {[%emt 0:03:06]} e5 {[%emt 0:00:26]} 34. Qe2 Qc6 {[%emt 0:00:34]} 0-1

[Event "Magistral Ajedrez 2019"]
[Site "Zaragoza"]
[Date "2019.07.15"]
[Round "2"]
[White "Shome Shiv"]
[Black "Gomez Anadon, Daniel"]
[Result "1/2-1/2"]
[ECO "B90"]
[WhiteElo "2298"]
[BlackElo "2305"]
[Annotator "ChessBase"]
[PlyCount "89"]
[EventDate "2019.07.15"]
[EventType "swiss"]
[EventCountry "ESP"]
[SourceTitle "playchess.com"]
[Source "ChessBase"]
[SourceQuality "1"]
[TimeControl "40/5400+30:1800+30"]

1. e4 {[%emt 0:00:00]} c5 {[%emt 0:00:00]} 2. Nf3 {[%emt 0:00:00]} d6 {[%emt 0:00:00]} 3. d4 {[%emt 0:00:00]} Nf6 {[%emt 0:00:00]} 4. Nc3 {[%emt 0:00:48]} cxd4 {[%emt 0:00:06]} 5. Nxd4 {[%emt 0:00:04]} a6 {[%emt 0:00:13]} 6. Be3 {[%emt 0:00:18]} e5 {[%emt 0:00:26]} 7. Nf3 {[%emt 0:00:13]} Be7 {[%emt 0:00:25]} 8. Bc4 {[%emt 0:00:21]} O-O {[%emt 0:00:20]} 9. O-O {[%emt 0:00:09]} Be6 {[%emt 0:00:42]} 10. Bb3 {[%emt 0:00:30]} Nc6 {[%emt 0:01:21]} 11. Qe2 {[%emt 0:01:14]} Na5 {[%emt 0:00:46]} 12. Rfd1 {[%emt 0:00:21]} Qc7 {[%emt 0:00:46]} 13. Bg5 {[%emt 0:02:09]} Rac8 {[%emt 0:04:28]} 14. Bxf6 {[%emt 0:07:37]} Bxf6 {[%emt 0:00:13]} 15. Nd5 {[%emt 0:00:11]} Bxd5 {[%emt 0:02:48]} 16. Rxd5 {[%emt 0:00:42]} Nxb3 {[%emt 0:00:46]} 17. cxb3 {[%emt 0:00:01]} Be7 {[%emt 0:03:03]} 18. Rad1 {[%emt 0:07:20]} f5 {[%emt 0:03:47]} 19. R5d2 {[%emt 0:16:32]} Qc6 {[%emt 0:04:30]} 20. exf5 {[%emt 0:00:56]} Rxf5 {[%emt 0:21:46]} 21. Nd4 {[%emt 0:04:36]} exd4 {[%emt 0:00:15]} 22. Qxe7 {[%emt 0:00:04]} Re8 {[%emt 0:02:58]} 23. Qh4 {[%emt 0:00:08]} Re4 {[%emt 0:02:30]} 24. Qg3 {[%emt 0:00:26]} Rfe5 {[%emt 0:02:47]} 25. h3 {[%emt 0:07:11]} Re1+ {[%emt 0:08:17]} 26. Kh2 {[%emt 0:01:34]} Qd5 {[%emt 0:04:56]} 27. Rxd4 {[%emt 0:09:21]} Rxd1 {[%emt 0:01:11]} 28. Rxd5 {[%emt 0:00:05]} Rdxd5 {[%emt 0:02:18]} 29. Qc3 {[%emt 0:01:10]} Rc5 {[%emt 0:02:29]} 30. Qd3 {[%emt 0:01:12]} Rc6 {[%emt 0:03:27]} 31. f4 {[%emt 0:00:58]} Re7 {[%emt 0:03:19]} 32. Qd5+ {[%emt 0:00:12]} Kf8 {[%emt 0:01:46]} 33. b4 {[%emt 0:02:49]} Rf7 {[%emt 0:01:24]} 34. Kg3 {[%emt 0:03:34]} g6 {[%emt 0:04:52]} 35. a4 {[%emt 0:08:24]} Ke8 {[%emt 0:07:06]} 36. b5 {[%emt 0:03:05]} axb5 {[%emt 0:00:21]} 37. axb5 {[%emt 0:00:14]} Rc5 {[%emt 0:00:46]} 38. Qxd6 {[%emt 0:00:34]} Rxb5 {[%emt 0:00:21]} 39. Qe6+ {[%emt 0:00:18]} Kf8 {[%emt 0:01:36]} 40. Qc8+ {[%emt 0:01:59]} Kg7 {[%emt 0:01:30]} 41. Qc4 {[%emt 0:31:37]} Rbf5 {[%emt 0:30:48]} 42. Qd4+ {[%emt 0:01:29]} Kg8 {[%emt 0:00:30]} 43. Qd8+ {[%emt 0:00:22]} Kg7 {[%emt 0:00:12]} 44. Qd4+ {[%emt 0:00:10]} Kg8 {[%emt 0:00:04]} 45. Qd8+ {[%emt 0:00:06]} 1/2-1/2

[Event "Magistral Ajedrez 2019"]
[Site "Zaragoza"]
[Date "2019.07.15"]
[Round "2"]
[White "Chueca Forcen, Alberto"]
[Black "Villuendas Valero, Adrian"]
[Result "1-0"]
[ECO "E32"]
[WhiteElo "2283"]
[BlackElo "2250"]
[Annotator "ChessBase"]
[PlyCount "71"]
[EventDate "2019.07.15"]
[EventType "swiss"]
[EventCountry "ESP"]
[SourceTitle "playchess.com"]
[Source "ChessBase"]
[SourceQuality "1"]
[TimeControl "40/5400+30:1800+30"]

1. d4 {[%emt 0:00:00]} Nf6 {[%emt 0:00:26]} 2. c4 {[%emt 0:00:00]} e6 {[%emt 0:00:22]} 3. Nc3 {[%emt 0:00:00]} Bb4 {[%emt 0:00:23]} 4. Qc2 {[%emt 0:00:00]} O-O {[%emt 0:02:24]} 5. e4 {[%emt 0:00:06]} d5 {[%emt 0:05:30]} 6. e5 {[%emt 0:00:27]} Ne4 {[%emt 0:00:40]} 7. Bd3 {[%emt 0:00:05]} c5 {[%emt 0:00:27]} 8. Nf3 {[%emt 0:00:31]} cxd4 {[%emt 0:02:56]} 9. Nxd4 {[%emt 0:00:03]} Nd7 {[%emt 0:03:01]} 10. Bf4 {[%emt 0:00:02]} Ndc5 {[%emt 0:02:58]} 11. O-O {[%emt 0:00:06]} Bxc3 {[%emt 0:10:40]} 12. bxc3 {[%emt 0:00:23]} Nxd3 {[%emt 0:21:00]} 13. Qxd3 {[%emt 0:00:44]} Qh4 {[%emt 0:07:54]} 14. Qe3 {[%emt 0:06:35]} b6 {[%emt 0:23:49]} 15. f3 {[%emt 0:07:42]} Nc5 {[%emt 0:01:47]} 16. cxd5 {[%emt 0:01:06]} exd5 {[%emt 0:00:56]} 17. Rfd1 {[%emt 0:00:13]} Qe7 {[%emt 0:06:43]} 18. a4 {[%emt 0:11:31]} Bd7 {[%emt 0:02:04]} 19. a5 {[%emt 0:01:16]} Rfc8 {[%emt 0:01:06]} 20. axb6 {[%emt 0:04:20]} axb6 {[%emt 0:00:06]} 21. Rxa8 {[%emt 0:01:25]} Rxa8 {[%emt 0:00:05]} 22. Bg5 {[%emt 0:00:30]} Qf8 {[%emt 0:02:49]} 23. Ne2 {[%emt 0:03:03]} Be6 {[%emt 0:00:36]} 24. Nf4 {[%emt 0:04:05]} h6 {[%emt 0:00:50]} 25. Bh4 {[%emt 0:00:44]} Ra4 {[%emt 0:01:48]} 26. h3 {[%emt 0:09:57]} Qa8 {[%emt 0:00:50]} 27. Kh2 {[%emt 0:01:14]} Rc4 {[%emt 0:00:36]} 28. Rd4 {[%emt 0:02:13]} Rxd4 {[%emt 0:00:30]} 29. cxd4 {[%emt 0:01:41]} Nd7 {[%emt 0:00:29]} 30. Nh5 {[%emt 0:00:02]} b5 {[%emt 0:00:44]} 31. f4 {[%emt 0:00:59]} Bf5 {[%emt 0:00:21]} 32. Ng3 {[%emt 0:01:38]} Be4 {[%emt 0:00:06]} 33. f5 {[%emt 0:06:38]} Qc6 {[%emt 0:00:39]} 34. Qa3 {[%emt 0:04:18]} g5 {[%emt 0:00:49]} 35. Qe7 {[%emt 0:03:25]} gxh4 {[%emt 0:00:31]} 36. Qe8+ {[%emt 0:00:02]} 1-0

[Event "Magistral Ajedrez 2019"]
[Site "Zaragoza"]
[Date "2019.07.15"]
[Round "2"]
[White "Kovacevic, Slobodan"]
[Black "Sos Andreu, Eric"]
[Result "0-1"]
[ECO "A46"]
[WhiteElo "2257"]
[BlackElo "2343"]
[Annotator "ChessBase"]
[PlyCount "110"]
[EventDate "2019.07.15"]
[EventType "swiss"]
[EventCountry "ESP"]
[SourceTitle "playchess.com"]
[Source "ChessBase"]
[SourceQuality "1"]
[TimeControl "40/5400+30:1800+30"]

1. d4 {[%emt 0:13:19]} Nf6 {[%emt 0:00:00]} 2. Nf3 {[%emt 0:00:12]} e6 {[%emt 0:00:00]} 3. Bf4 {[%emt 0:00:07]} d5 {[%emt 0:00:07]} 4. Nbd2 {[%emt 0:00:21]} c5 {[%emt 0:00:10]} 5. e3 {[%emt 0:00:20]} Nc6 {[%emt 0:00:10]} 6. c3 {[%emt 0:00:07]} Bd6 {[%emt 0:00:08]} 7. Bg3 {[%emt 0:00:05]} O-O {[%emt 0:00:10]} 8. Bd3 {[%emt 0:00:45]} b6 {[%emt 0:00:12]} 9. Ne5 {[%emt 0:00:21]} Bb7 {[%emt 0:00:59]} 10. f4 {[%emt 0:00:27]} Ne7 {[%emt 0:00:18]} 11. Qf3 {[%emt 0:00:03]} Nf5 {[%emt 0:00:32]} 12. Bf2 {[%emt 0:00:03]} Be7 {[%emt 0:00:22]} 13. Ng4 {[%emt 0:02:26]} Nxg4 {[%emt 0:01:05]} 14. Qxg4 {[%emt 0:00:03]} Nd6 {[%emt 0:01:11]} 15. Qh3 {[%emt 0:00:15]} Ne4 {[%emt 0:03:30]} 16. Nf3 {[%emt 0:02:16]} b5 {[%emt 0:05:07]} 17. a3 {[%emt 0:09:14]} c4 {[%emt 0:05:05]} 18. Bc2 {[%emt 0:02:10]} a5 {[%emt 0:00:04]} 19. Bh4 {[%emt 0:00:14]} Bxh4+ {[%emt 0:00:42]} 20. Nxh4 {[%emt 0:00:51]} b4 {[%emt 0:02:07]} 21. axb4 {[%emt 0:02:23]} axb4 {[%emt 0:00:05]} 22. O-O {[%emt 0:02:33]} Rxa1 23. Rxa1 {[%emt 0:02:31]} Qb6 {[%emt 0:05:52]} 24. cxb4 f5 {[%emt 0:06:41]} 25. Nf3 {[%emt 0:11:07]} Nf6 {[%emt 0:00:45]} 26. Qh4 {[%emt 0:05:53]} Qxb4 {[%emt 0:00:31]} 27. h3 {[%emt 0:06:35]} Rb8 28. Rb1 Bc6 {[%emt 0:08:00]} 29. Qf2 {[%emt 0:13:27]} Ba4 {[%emt 0:06:17]} 30. Ng5 {[%emt 0:04:20]} Bxc2 {[%emt 0:02:12]} 31. Qxc2 {[%emt 0:00:09]} h6 32. Nxe6 {[%emt 0:01:20]} Qe7 {[%emt 0:04:24]} 33. Qxf5 {[%emt 0:01:35]} Re8 {[%emt 0:01:16]} 34. Nc5 {[%emt 0:00:28]} Qxe3+ {[%emt 0:00:13]} 35. Kh1 {[%emt 0:01:09]} Qxd4 {[%emt 0:01:00]} 36. b4 {[%emt 0:02:02]} c3 {[%emt 0:03:42]} 37. Kh2 {[%emt 0:03:38]} Qd2 {[%emt 0:02:07]} 38. Nb3 {[%emt 0:04:26]} Qf2 {[%emt 0:01:03]} 39. Ra1 {[%emt 0:00:37]} Qb6 {[%emt 0:01:02]} 40. Ra4 {[%emt 0:01:36]} Qf2 {[%emt 0:06:09]} 41. Ra6 {[%emt 0:31:10]} Re2 {[%emt 0:32:35]} 42. Qc8+ {[%emt 0:04:25]} Kh7 {[%emt 0:03:04]} 43. Qf5+ {[%emt 0:01:16]} g6 {[%emt 0:01:46]} 44. Ra7+ {[%emt 0:00:21]} Qxa7 {[%emt 0:00:05]} 45. Qxf6 {[%emt 0:00:05]} Qg7 {[%emt 0:00:43]} 46. Qd6 {[%emt 0:02:13]} Qf7 {[%emt 0:01:06]} 47. Nd4 {[%emt 0:01:05]} Re4 {[%emt 0:01:48]} 48. f5 {[%emt 0:00:09]} gxf5 {[%emt 0:00:33]} 49. Qc5 {[%emt 0:01:02]} Qe7 {[%emt 0:02:15]} 50. Qxd5 {[%emt 0:02:39]} Qe5+ {[%emt 0:00:05]} 51. Qxe5 {[%emt 0:00:16]} Rxe5 {[%emt 0:00:05]} 52. b5 {[%emt 0:00:29]} Rd5 {[%emt 0:00:08]} 53. Ne2 {[%emt 0:00:19]} c2 {[%emt 0:00:10]} 54. b6 {[%emt 0:00:34]} Rb5 {[%emt 0:01:03]} 55. Nd4 {[%emt 0:00:39]} Rb2 {[%emt 0:00:19]} 0-1

[Event "Magistral Ajedrez 2019"]
[Site "Zaragoza"]
[Date "2019.07.15"]
[Round "2"]
[White "Romero Pallares, Daniel"]
[Black "Randazzo, Adrian"]
[Result "0-1"]
[ECO "C07"]
[WhiteElo "2230"]
[BlackElo "2227"]
[Annotator "ChessBase"]
[PlyCount "122"]
[EventDate "2019.07.15"]
[EventType "swiss"]
[EventCountry "ESP"]
[SourceTitle "playchess.com"]
[Source "ChessBase"]
[SourceQuality "1"]
[TimeControl "40/5400+30:1800+30"]

1. e4 {[%emt 0:00:00]} e6 {[%emt 0:06:36]} 2. d4 {[%emt 0:00:00]} d5 {[%emt 0:00:03]} 3. Nd2 {[%emt 0:00:06]} c5 {[%emt 0:00:04]} 4. Ngf3 {[%emt 0:00:11]} cxd4 {[%emt 0:00:05]} 5. Nxd4 {[%emt 0:00:18]} Nc6 {[%emt 0:00:24]} 6. Nxc6 {[%emt 0:03:52]} bxc6 {[%emt 0:00:05]} 7. Bd3 {[%emt 0:00:02]} Qc7 {[%emt 0:01:26]} 8. c4 {[%emt 0:08:31]} Nf6 {[%emt 0:05:14]} 9. O-O {[%emt 0:03:41]} Bd6 {[%emt 0:01:06]} 10. h3 {[%emt 0:00:25]} O-O {[%emt 0:00:34]} 11. cxd5 {[%emt 0:02:00]} cxd5 {[%emt 0:00:23]} 12. exd5 {[%emt 0:01:18]} Nxd5 {[%emt 0:00:21]} 13. Ne4 {[%emt 0:15:04]} Be5 {[%emt 0:03:29]} 14. Qh5 {[%emt 0:05:15]} f5 {[%emt 0:04:04]} 15. Ng5 {[%emt 0:06:17]} h6 {[%emt 0:03:51]} 16. Nf3 {[%emt 0:00:59]} Bf6 {[%emt 0:11:21]} 17. Bd2 {[%emt 0:15:41]} Bxb2 {[%emt 0:02:16]} 18. Rab1 {[%emt 0:07:13]} Bf6 {[%emt 0:03:02]} 19. Qg6 {[%emt 0:02:51]} Bd7 {[%emt 0:03:14]} 20. Rfc1 {[%emt 0:03:30]} Qd6 {[%emt 0:01:42]} 21. Bc4 {[%emt 0:06:13]} Be8 {[%emt 0:12:44]} 22. Qg3 {[%emt 0:00:10]} f4 {[%emt 0:03:30]} 23. Qh2 {[%emt 0:01:19]} g5 {[%emt 0:01:55]} 24. Kh1 {[%emt 0:01:04]} Bg6 {[%emt 0:00:46]} 25. Rb5 {[%emt 0:01:39]} Rac8 {[%emt 0:01:43]} 26. Qg1 {[%emt 0:01:26]} Rfd8 {[%emt 0:07:41]} 27. Qe1 {[%emt 0:00:56]} Bf5 {[%emt 0:02:52]} 28. Ba5 {[%emt 0:02:33]} Rd7 {[%emt 0:04:39]} 29. Rxd5 {[%emt 0:04:49]} exd5 {[%emt 0:02:39]} 30. Bxd5+ {[%emt 0:00:01]} Qxd5 {[%emt 0:00:57]} 31. Rxc8+ {[%emt 0:00:02]} Kh7 {[%emt 0:00:28]} 32. Bc3 {[%emt 0:01:17]} Re7 {[%emt 0:00:56]} 33. Rh8+ {[%emt 0:01:12]} Kg6 {[%emt 0:00:54]} 34. Qa1 {[%emt 0:02:32]} Bxh8 {[%emt 0:01:11]} 35. Bxh8 {[%emt 0:00:01]} Qe6 {[%emt 0:01:42]} 36. Kh2 {[%emt 0:00:01]} h5 {[%emt 0:04:00]} 37. Qc3 {[%emt 0:01:54]} g4 {[%emt 0:01:33]} 38. Nd4 {[%emt 0:01:36]} g3+ {[%emt 0:00:44]} 39. fxg3 {[%emt 0:00:02]} Qd6 {[%emt 0:04:52]} 40. Nxf5 {[%emt 0:00:51]} Kxf5 {[%emt 0:00:10]} 41. Qc2+ {[%emt 0:33:00]} Kg5 {[%emt 0:30:16]} 42. h4+ {[%emt 0:00:35]} Kh6 {[%emt 0:00:34]} 43. gxf4 {[%emt 0:00:30]} Qxf4+ {[%emt 0:00:10]} 44. g3 {[%emt 0:00:19]} Qf3 {[%emt 0:01:08]} 45. Qd2+ {[%emt 0:00:42]} Kh7 {[%emt 0:00:31]} 46. Be5 {[%emt 0:00:03]} Rxe5 {[%emt 0:01:17]} 47. Qd7+ {[%emt 0:00:06]} Kg6 {[%emt 0:00:29]} 48. Qd6+ {[%emt 0:00:32]} Qf6 {[%emt 0:00:14]} 49. Qd3+ {[%emt 0:00:13]} Kg7 {[%emt 0:00:16]} 50. Qd7+ {[%emt 0:00:15]} Qe7 {[%emt 0:00:10]} 51. Qd4 {[%emt 0:00:04]} a5 {[%emt 0:00:14]} 52. a4 {[%emt 0:00:14]} Qe6 {[%emt 0:01:22]} 53. Qc3 {[%emt 0:00:27]} Qf6 {[%emt 0:00:24]} 54. Qc7+ {[%emt 0:00:24]} Qe7 {[%emt 0:01:14]} 55. Qc3 {[%emt 0:00:06]} Qc5 {[%emt 0:00:10]} 56. Qb2 {[%emt 0:00:46]} Kf6 {[%emt 0:00:45]} 57. Qa1 {[%emt 0:00:04]} Qc2+ {[%emt 0:00:48]} 58. Kh3 {[%emt 0:00:13]} Qf5+ {[%emt 0:00:17]} 59. Kg2 {[%emt 0:00:14]} Kg6 {[%emt 0:00:25]} 60. Qd1 {[%emt 0:01:22]} Qe4+ {[%emt 0:00:16]} 61. Kh3 {[%emt 0:00:04]} Qg4+ {[%emt 0:00:03]} 0-1

[Event "Magistral Ajedrez 2019"]
[Site "Zaragoza"]
[Date "2019.07.16"]
[Round "3.1"]
[White "Sos Andreu, Eric"]
[Black "Romero Pallares, Daniel"]
[Result "1-0"]
[ECO "E63"]
[WhiteElo "2343"]
[BlackElo "2230"]
[Annotator "NA"]
[PlyCount "53"]
[EventDate "2019.07.15"]
[EventType "swiss"]
[EventCountry "ESP"]
[SourceTitle "playchess.com"]
[Source "ChessBase"]
[SourceQuality "1"]
[TimeControl "5400+30"]

1. Nf3 {[%emt 0:00:00]} g6 {[%emt 0:00:00]} 2. c4 {[%emt 0:00:00]} Bg7 {[%emt 0:00:22]} 3. d4 {[%emt 0:00:08]} Nf6 {[%emt 0:00:15]} 4. g3 {[%emt 0:00:09]} O-O {[%emt 0:00:07]} 5. Bg2 {[%emt 0:00:06]} d6 {[%emt 0:00:32]} 6. Nc3 {[%emt 0:00:23]} Nc6 {[%emt 0:00:32]} 7. O-O {[%emt 0:00:22]} a6 {[%emt 0:00:02]} 8. Bf4 {[%emt 0:00:16]} Rb8 {[%emt 0:06:52]} 9. Rc1 {[%emt 0:00:25]} Nh5 {[%emt 0:06:15]} 10. Be3 {[%emt 0:04:37]} Bd7 {[%emt 0:01:16]} 11. b3 {[%emt 0:04:12]} e6 {[%emt 0:15:17]} 12. Bg5 {[%emt 0:14:32]} f6 {[%emt 0:02:47]} 13. Be3 {[%emt 0:00:16]} e5 {[%emt 0:00:53]} 14. Qd2 {[%emt 0:04:16]} Re8 {[%emt 0:02:41]} 15. dxe5 {[%emt 0:03:29]} dxe5 {[%emt 0:00:39]} 16. Rfd1 {[%emt 0:02:53]} Be6 {[%emt 0:00:21]} 17. Nd5 {[%emt 0:02:06]} Qd7 {[%emt 0:02:25]} 18. Ne1 {[%emt 0:08:22]} Rbd8 {[%emt 0:03:44]} 19. Nd3 {[%emt 0:02:04]} Qf7 {[%emt 0:00:51]} 20. Nc5 {[%emt 0:07:23]} Bc8 {[%emt 0:00:19]} 21. Bh6 {[%emt 0:00:27]} Qf8 {[%emt 0:04:54]} 22. Bxg7 {[%emt 0:00:12]} Nxg7 {[%emt 0:00:22]} 23. Ne4 {[%emt 0:03:56]} Re6 {[%emt 0:07:42]} 24. Qh6 {[%emt 0:05:38]} Nd4 {[%emt 0:01:59]} 25. Ndxf6+ {[%emt 0:04:36]} Rxf6 {[%emt 0:06:40]} 26. Ng5 {[%emt 0:00:15]} Nxe2+ {[%emt 0:07:46]} 27. Kh1 {[%emt 0:00:07]} 1-0

[Event "Magistral Ajedrez 2019"]
[Site "Zaragoza"]
[Date "2019.07.16"]
[Round "3.2"]
[White "Llorente Zaro, Alfonso"]
[Black "Kovacevic, Slobodan"]
[Result "1-0"]
[ECO "C02"]
[WhiteElo "2445"]
[BlackElo "2257"]
[Annotator "ChessBase"]
[PlyCount "81"]
[EventDate "2019.07.15"]
[EventType "swiss"]
[EventCountry "ESP"]
[SourceTitle "playchess.com"]
[Source "ChessBase"]
[SourceQuality "1"]
[TimeControl "5400+30"]

1. e4 {[%emt 0:00:00]} c5 {[%emt 0:01:55]} 2. Nf3 {[%emt 0:00:00]} e6 {[%emt 0:00:15]} 3. c3 {[%emt 0:00:20]} Nc6 {[%emt 0:01:12]} 4. d4 {[%emt 0:01:41]} d5 {[%emt 0:00:59]} 5. e5 {[%emt 0:01:42]} Nge7 {[%emt 0:01:15]} 6. Na3 {[%emt 0:00:34]} cxd4 {[%emt 0:01:40]} 7. cxd4 {[%emt 0:00:05]} Nf5 {[%emt 0:00:27]} 8. Nc2 {[%emt 0:00:07]} Qa5+ {[%emt 0:00:28]} 9. Bd2 {[%emt 0:00:44]} Qb6 {[%emt 0:01:12]} 10. Bc3 {[%emt 0:00:28]} a5 {[%emt 0:04:53]} 11. a3 {[%emt 0:20:24]} a4 {[%emt 0:04:10]} 12. Bd3 {[%emt 0:01:03]} Bd7 {[%emt 0:03:30]} 13. O-O {[%emt 0:05:24]} Be7 {[%emt 0:02:59]} 14. Re1 {[%emt 0:13:08]} g6 {[%emt 0:07:48]} 15. g4 {[%emt 0:08:16]} Nh4 {[%emt 0:08:57]} 16. Re3 {[%emt 0:07:29]} Nxf3+ {[%emt 0:26:28]} 17. Rxf3 {[%emt 0:00:06]} Kf8 {[%emt 0:03:02]} 18. h4 {[%emt 0:12:04]} Bxh4 {[%emt 0:04:21]} 19. Qd2 {[%emt 0:00:25]} Qd8 {[%emt 0:01:09]} 20. Qh6+ {[%emt 0:00:20]} Kg8 {[%emt 0:00:09]} 21. Bd2 {[%emt 0:00:31]} Be7 {[%emt 0:00:54]} 22. Qf4 {[%emt 0:01:56]} Be8 {[%emt 0:10:39]} 23. g5 {[%emt 0:00:18]} Qb6 {[%emt 0:02:08]} 24. Rb1 {[%emt 0:01:46]} Bf8 {[%emt 0:03:28]} 25. Kg2 {[%emt 0:05:55]} Bg7 {[%emt 0:00:22]} 26. Rh3 {[%emt 0:01:06]} Rd8 {[%emt 0:03:00]} 27. Bc3 {[%emt 0:01:14]} Ne7 {[%emt 0:02:08]} 28. Ne3 {[%emt 0:00:15]} Bb5 {[%emt 0:00:16]} 29. Bc2 {[%emt 0:03:36]} Qa6 {[%emt 0:00:23]} 30. Ng4 {[%emt 0:00:22]} Nf5 {[%emt 0:00:37]} 31. Rbh1 {[%emt 0:06:40]} Rc8 {[%emt 0:01:54]} 32. Nf6+ {[%emt 0:02:10]} Bxf6 {[%emt 0:00:41]} 33. gxf6 {[%emt 0:00:05]} Kf8 {[%emt 0:01:59]} 34. Bxf5 {[%emt 0:00:23]} exf5 {[%emt 0:00:21]} 35. Qh6+ {[%emt 0:01:38]} Ke8 {[%emt 0:00:39]} 36. Qg7 {[%emt 0:01:09]} Bd3 {[%emt 0:00:12]} 37. Rxd3 {[%emt 0:01:23]} Qxd3 {[%emt 0:00:16]} 38. Re1 {[%emt 0:01:07]} Rf8 {[%emt 0:01:23]} 39. e6 {[%emt 0:00:36]} Rxc3 {[%emt 0:00:35]} 40. bxc3 {[%emt 0:00:11]} Qd2 {[%emt 0:00:12]} 41. e7 {[%emt 0:00:26]} 1-0

[Event "Magistral Ajedrez 2019"]
[Site "Zaragoza"]
[Date "2019.07.16"]
[Round "3.3"]
[White "Gomez Anadon, Daniel"]
[Black "Dardha, Daniel"]
[Result "1/2-1/2"]
[ECO "B30"]
[WhiteElo "2305"]
[BlackElo "2420"]
[Annotator "ChessBase"]
[PlyCount "74"]
[EventDate "2019.07.15"]
[EventType "swiss"]
[EventCountry "ESP"]
[SourceTitle "playchess.com"]
[Source "ChessBase"]
[SourceQuality "1"]
[TimeControl "5400+30"]

1. e4 {[%emt 0:00:00]} c5 {[%emt 0:00:00]} 2. Nf3 {[%emt 0:00:10]} Nc6 {[%emt 0:00:00]} 3. Bb5 {[%emt 0:00:18]} Nf6 {[%emt 0:00:36]} 4. Bxc6 {[%emt 0:01:28]} dxc6 {[%emt 0:00:10]} 5. d3 {[%emt 0:02:02]} Bg4 {[%emt 0:00:12]} 6. Nbd2 {[%emt 0:01:54]} Nd7 {[%emt 0:00:25]} 7. h3 {[%emt 0:01:36]} Bh5 {[%emt 0:00:06]} 8. g4 {[%emt 0:03:13]} Bg6 {[%emt 0:00:19]} 9. Nh4 {[%emt 0:09:17]} e5 {[%emt 0:06:09]} 10. Nf5 {[%emt 0:08:43]} f6 {[%emt 0:00:29]} 11. Nc4 {[%emt 0:04:28]} Qc7 {[%emt 0:06:32]} 12. h4 {[%emt 0:03:19]} Bf7 {[%emt 0:06:53]} 13. h5 {[%emt 0:00:31]} O-O-O {[%emt 0:14:19]} 14. a4 {[%emt 0:01:46]} Nb6 {[%emt 0:07:48]} 15. Qe2 {[%emt 0:03:41]} Nxc4 {[%emt 0:01:24]} 16. dxc4 {[%emt 0:00:06]} Rg8 {[%emt 0:10:13]} 17. Bd2 {[%emt 0:02:36]} g6 {[%emt 0:01:29]} 18. hxg6 {[%emt 0:01:52]} hxg6 {[%emt 0:00:02]} 19. Ne3 {[%emt 0:00:27]} Be6 {[%emt 0:08:03]} 20. O-O-O {[%emt 0:00:28]} Bg7 {[%emt 0:07:52]} 21. Rh7 {[%emt 0:08:09]} Rh8 {[%emt 0:00:31]} 22. Rdh1 {[%emt 0:02:36]} Rxh7 {[%emt 0:00:11]} 23. Rxh7 {[%emt 0:00:05]} Bg8 {[%emt 0:00:58]} 24. Rh1 {[%emt 0:00:20]} Qd6 {[%emt 0:01:31]} 25. Bc3 {[%emt 0:03:00]} Qf8 {[%emt 0:00:13]} 26. b3 {[%emt 0:03:50]} Bh6 {[%emt 0:01:06]} 27. Kb2 {[%emt 0:01:40]} Be6 {[%emt 0:02:38]} 28. Ng2 {[%emt 0:05:42]} Bg5 {[%emt 0:01:28]} 29. Ne1 {[%emt 0:03:08]} Qg7 {[%emt 0:01:33]} 30. Nd3 {[%emt 0:01:16]} b6 {[%emt 0:00:20]} 31. f3 {[%emt 0:08:32]} Rh8 {[%emt 0:01:38]} 32. Rxh8+ {[%emt 0:04:03]} Qxh8 {[%emt 0:00:02]} 33. a5 {[%emt 0:03:16]} Qh1 {[%emt 0:06:28]} 34. Be1 {[%emt 0:02:34]} Kc7 {[%emt 0:05:35]} 35. Bg3 {[%emt 0:01:31]} Qg1 {[%emt 0:00:29]} 36. Bf2 {[%emt 0:01:53]} Qh2 {[%emt 0:03:25]} 37. Qf1 {[%emt 0:02:34]} Bc8 {[%emt 0:03:02]} 1/2-1/2